bitfinex-derivatives/quotes_BTCF0:USTF0_20250313
["timestamp","ask_amount","ask_price","bid_price","bid_amount"]
[1741889198290,0.12441029,80477.0,80476.0,0.00018632]
[1741889199177,0.12441029,80477.0,80476.0,0.20068632]
[1741889199883,0.12441029,80477.0,80476.0,0.32498172]
[1741889200078,0.12441029,80477.0,80476.0,0.20068632]
[1741889201481,0.12441029,80477.0,80476.0,0.32498172]
[1741889201786,0.12441029,80477.0,80476.0,0.20068632]
[1741889202183,0.12441029,80477.0,80476.0,0.32498172]
[1741889202382,0.12441029,80477.0,80476.0,0.20068632]
[1741889202983,0.1242938,80477.0,80476.0,0.00018632]
[1741889203585,0.1864515,80475.0,80474.0,0.1864393]
[1741889203782,0.0621499,80475.0,80474.0,0.1864393]
[1741889203982,0.0621499,80475.0,80474.0,0.062147]
[1741889204282,0.1243,80473.0,80472.0,0.1864497]
[1741889204488,0.1243,80473.0,80472.0,0.0621493]
[1741889204784,0.1243016,80472.0,80471.0,0.1058]
[1741889204988,0.2373192,80472.0,80471.0,0.1058]
[1741889205189,0.12444677,80472.0,80471.0,0.2301031]
[1741889208095,0.12444677,80472.0,80471.0,0.24539393]
[1741889210886,0.00014517,80472.0,80471.0,0.26987804]
[1741889211089,0.00014517,80472.0,80471.0,0.50987804]
[1741889211402,0.12446012,80490.0,80489.0,0.1242753]
[1741889212187,0.12446012,80490.0,80489.0,0.01529083]
[1741889212689,0.12446012,80490.0,80489.0,0.03979326]
[1741889213191,0.22916012,80490.0,80489.0,0.03979326]
[1741889213393,0.22916012,80490.0,80489.0,0.01529083]
[1741889213902,0.33506012,80490.0,80489.0,0.01529083]
[1741889214597,0.33506012,80490.0,80489.0,3e-08]
[1741889214784,0.43586012,80490.0,80489.0,3e-08]
[1741889215184,0.1243047,80470.0,80469.0,0.01921512]
[1741889215996,0.2743047,80470.0,80469.0,1e-08]
[1741889216192,0.1243186,80461.0,80444.0,0.0621723]
[1741889216489,0.0621666,80452.0,80445.0,0.1055]
[1741889216791,0.6216526,80454.0,80435.0,0.52597909]
[1741889216990,0.20038166,80455.0,80435.0,0.52597909]
[1741889216991,0.1243572,80436.0,80435.0,0.52597909]
[1741889217394,0.1243572,80436.0,80435.0,0.65033779]
[1741889217590,0.14013905,80436.0,80435.0,0.52597909]
[1741889218294,0.24023905,80436.0,80435.0,0.52597909]
[1741889219198,0.1243634,80432.0,80431.0,0.1011]
[1741889219495,0.1243634,80432.0,80431.0,0.2254649]
[1741889220084,0.1243634,80432.0,80431.0,0.1011]
[1741889220483,0.1243634,80432.0,80431.0,0.2254649]
[1741889220793,0.0621717,80445.0,80443.0,0.1243464]
[1741889220995,0.159,80456.0,80443.0,0.1943464]
[1741889221202,0.159,80481.0,80466.0,0.1243108]
[1741889221499,0.12616701,80472.0,80468.0,0.0621536]
[1741889221694,0.12616701,80472.0,80455.0,0.159]
[1741889221695,0.062156,80466.0,80463.0,0.01626492]
[1741889221991,0.1243036,80471.0,80470.0,0.1243047]
[1741889222297,0.1243036,80471.0,80468.0,0.0621532]
[1741889222298,0.1163664,80469.0,80468.0,0.1864604]
[1741889222498,0.00186541,80472.0,80462.0,0.00018645]
[1741889222499,0.1243155,80463.0,80462.0,0.00018645]
[1741889222890,0.1243155,80463.0,80462.0,0.12450345]
[1741889223083,0.0621539,80468.0,80467.0,0.1243093]
[1741889223288,0.12616971,80472.0,80471.0,0.1243031]
[1741889223693,0.1243031,80471.0,80470.0,0.209]
[1741889223992,0.1243031,80471.0,80470.0,0.3333047]
[1741889224199,0.1243031,80471.0,80470.0,0.209]
[1741889224393,0.2301031,80471.0,80470.0,0.209]
[1741889224582,0.1243031,80471.0,80470.0,0.209]
[1741889225689,0.1864875,80459.0,80458.0,0.0621598]
[1741889226198,0.1864875,80459.0,80458.0,0.08554269]
[1741889226995,0.1864875,80459.0,80458.0,0.02338289]
[1741889227390,0.1864875,80459.0,80458.0,0.03804526]
[1741889227998,0.0621569,80466.0,80465.0,0.1243063]
[1741889228191,0.0621569,80466.0,80465.0,0.2486128]
[1741889228392,0.0621569,80466.0,80465.0,0.1243063]
[1741889228803,0.0621569,80466.0,80465.0,0.16235156]
[1741889229106,0.00108,80494.0,80473.0,0.1243]
[1741889229400,0.5056,80514.0,80473.0,0.1243]
[1741889229401,0.1012,80497.0,80478.0,0.1242923]
[1741889229602,0.236102,80491.0,80490.0,0.1242738]
[1741889230000,0.04969,80491.0,80490.0,0.13638984]
[1741889230500,0.04969,80491.0,80490.0,0.16231906]
[1741889230699,0.04969,80491.0,80490.0,0.17835669]
[1741889230998,0.124225,80523.0,80522.0,0.0621118]
[1741889231199,0.124225,80523.0,80490.0,0.38832115]
[1741889231200,0.1242458,80509.0,80508.0,0.1863615]
[1741889231404,0.1242418,80511.0,80510.0,0.1242414]
[1741889231596,0.0621172,80516.0,80515.0,0.1242352]
[1741889231789,0.13972373,80529.0,80526.0,0.1242182]
[1741889231996,0.13972373,80529.0,80522.0,0.0621119]
[1741889232296,0.13972373,80529.0,80515.0,0.03740716]
[1741889232297,0.1242228,80524.0,80523.0,0.1069]
[1741889232501,0.1242228,80524.0,80518.0,0.00018633]
[1741889232502,0.124229,80519.0,80518.0,0.00018633]
[1741889233203,0.124229,80519.0,80518.0,0.01453619]
[1741889233398,0.225329,80519.0,80518.0,0.01453619]
[1741889234094,0.225329,80519.0,80518.0,0.00018633]
[1741889234298,0.0621244,80507.0,80504.0,0.1069]
[1741889234495,0.1242506,80505.0,80504.0,0.1069]
[1741889234702,0.2004,80506.0,80491.0,0.15896]
[1741889234905,0.1242707,80493.0,80492.0,0.2188815]
[1741889235103,0.0621323,80496.0,80493.0,0.0621339]
[1741889235301,0.0621323,80496.0,80494.0,0.2185815]
[1741889235498,0.1242691,80493.0,80492.0,0.03771587]
[1741889236103,0.1242784,80487.0,80486.0,0.00018633]
[1741889237811,0.1242985,80474.0,80458.0,0.15892]
[1741889238007,0.0621403,80486.0,80467.0,0.2134]
[1741889238008,0.1243078,80468.0,80467.0,0.2134]
[1741889238200,0.1243186,80461.0,80460.0,0.1071]
[1741889238398,0.1243186,80461.0,80460.0,0.11943547]
[1741889238597,0.2668546,80467.0,80454.0,0.1243292]
[1741889238598,0.2047,80467.0,80454.0,0.1243292]
[1741889238799,0.1243263,80457.0,80456.0,0.1243263]
[1741889239100,0.1243263,80457.0,80456.0,0.3281263]
[1741889239306,0.1243263,80457.0,80456.0,0.34265314]
[1741889239501,0.1243263,80457.0,80456.0,0.23100518]
[1741889239701,0.3290263,80457.0,80456.0,0.02720518]
[1741889240003,0.3290263,80457.0,80456.0,0.01452684]
[1741889240303,0.1865323,80441.0,80440.0,0.1243473]
[1741889240503,0.2047,80457.0,80440.0,0.05268134]
[1741889240694,0.1865145,80450.0,80449.0,0.124334]
[1741889240897,0.2047,80457.0,80455.0,0.1243278]
[1741889240898,0.00018644,80457.0,80455.0,0.1243278]
[1741889241108,0.12451114,80457.0,80456.0,0.2231263]
[1741889241294,0.00018644,80457.0,80456.0,0.2231263]
[1741889241605,0.00018644,80457.0,80456.0,0.23557593]
[1741889241807,0.00018644,80457.0,80456.0,0.33227593]
[1741889242004,0.12451114,80457.0,80456.0,0.33227593]
[1741889242205,0.12451114,80457.0,80456.0,0.3198263]
[1741889242903,0.00018644,80457.0,80456.0,0.3198263]
[1741889243110,0.1243064,80472.0,80471.0,0.0621492]
[1741889243406,0.0621385,80488.0,80472.0,0.0621504]
[1741889243708,1.7041901,80519.0,80476.0,0.0621477]
[1741889243709,0.0621409,80485.0,80476.0,0.0621477]
[1741889244007,0.2210758,80518.0,80501.0,0.1242568]
[1741889244208,0.1944,80516.0,80501.0,0.1242568]
[1741889244405,0.00018644,80510.0,80501.0,0.1242568]
[1741889244907,0.0621275,80503.0,80500.0,0.2213583]
[1741889245102,0.00018644,80510.0,80500.0,0.2213583]
[1741889245103,0.1242451,80509.0,80501.0,0.1242568]
[1741889245298,0.00018644,80510.0,80501.0,0.1242568]
[1741889245299,0.1242463,80508.0,80501.0,0.2213568]
[1741889245604,0.00018644,80510.0,80501.0,0.2213568]
[1741889245802,0.00018644,80510.0,80501.0,0.2411666]
[1741889245998,1.08304,80558.0,80507.0,0.0621231]
[1741889245999,0.0946,80525.0,80507.0,0.0621231]
[1741889246198,0.608,80545.0,80507.0,0.0621231]
[1741889246199,0.186329,80529.0,80528.0,0.0621062]
[1741889246811,0.2188135,80531.0,80530.0,0.124212]
[1741889247705,0.1242136,80529.0,80528.0,0.0621062]
[1741889248304,0.1242136,80529.0,80525.0,0.0621097]
[1741889248504,0.1242182,80527.0,80526.0,0.1242136]
[1741889249408,0.3275182,80527.0,80526.0,0.1242136]
[1741889250011,0.1242228,80523.0,80522.0,0.00018632]
[1741889250215,0.1242228,80523.0,80522.0,0.12441072]
[1741889251309,0.2033,80527.0,80522.0,0.00018632]
[1741889251514,0.1863333,80525.0,80524.0,0.1242182]
[1741889251701,0.0621105,80525.0,80524.0,0.1242182]
[1741889252207,0.2573105,80525.0,80524.0,0.1242182]
[1741889252707,0.0620972,80542.0,80524.0,0.1242182]
[1741889252708,0.1024,80545.0,80538.0,0.1241997]
[1741889252906,0.12438452,80539.0,80538.0,0.1241997]
[1741889253112,0.00018632,80539.0,80538.0,0.1241997]
[1741889253509,0.00018632,80539.0,80538.0,0.30441575]
[1741889254007,0.00018632,80539.0,80538.0,0.14405575]
[1741889254202,0.0620754,80570.0,80553.0,0.1241766]
[1741889254406,0.6203834,80618.0,80553.0,0.1241766]
[1741889254407,0.0953,80565.0,80553.0,0.1841766]
[1741889254608,0.29669283,80591.0,80577.0,0.1241396]
[1741889254609,0.2230395,80578.0,80577.0,0.1241396]
[1741889254800,0.1241497,80572.0,80571.0,0.1241422]
[1741889255315,0.2194396,80577.0,80576.0,0.1241411]
[1741889255607,0.2194396,80577.0,80571.0,0.1241422]
[1741889255608,0.1862213,80574.0,80573.0,0.1241411]
[1741889255811,0.0989,80576.0,80568.0,0.1036]
[1741889256002,0.0989,80576.0,80563.0,0.0001862]
[1741889256003,0.1241596,80564.0,80563.0,0.0001862]
[1741889256422,0.1241596,80564.0,80563.0,0.1243474]
[1741889256910,0.1598788,80566.0,80563.0,0.0622662]
[1741889256911,0.0978,80566.0,80563.0,0.0622662]
[1741889257099,0.1241596,80564.0,80563.0,0.0001862]
[1741889259812,0.1241596,80564.0,80563.0,1e-07]
[1741889260607,0.16975179,80564.0,80531.0,0.01393176]
[1741889260814,0.1242012,80537.0,80536.0,0.01393176]
[1741889261322,0.1242217,80525.0,80524.0,0.1863259]
[1741889261816,0.1242217,80525.0,80516.0,0.01979202]
[1741889261817,0.1242321,80517.0,80516.0,0.20632502]
[1741889262018,0.0621105,80525.0,80522.0,0.0621118]
[1741889262210,0.1863333,80525.0,80524.0,0.1242213]
[1741889262611,0.1242244,80522.0,80521.0,0.0621129]
[1741889264512,0.1242321,80517.0,80516.0,0.0001862]
[1741889264911,0.1242321,80517.0,80516.0,0.1244198]
[1741889265513,0.1242321,80517.0,80516.0,0.0001862]
[1741889265823,0.1242223,80525.0,80524.0,0.1242167]
[1741889266115,0.2002,80532.0,80516.0,0.0001862]
[1741889266316,0.1242177,80529.0,80528.0,0.0621067]
[1741889266622,0.0001862,80533.0,80532.0,0.124209]
[1741889266816,0.0620924,80548.0,80532.0,0.26794]
[1741889267117,0.1241875,80546.0,80545.0,0.1241858]
[1741889267321,0.12603069,80560.0,80559.0,0.1241673]
[1741889267620,0.00186319,80560.0,80559.0,0.1241673]
[1741889267824,0.12602899,80560.0,80559.0,0.1241673]
[1741889268122,0.00186319,80560.0,80559.0,0.1241673]
[1741889268423,0.1241673,80559.0,80558.0,0.1035]
[1741889268622,0.3141673,80559.0,80558.0,0.1035]
[1741889268823,0.00186319,80560.0,80558.0,0.2276689]
[1741889269017,0.12602899,80560.0,80559.0,0.1241673]
[1741889269325,0.12602899,80560.0,80559.0,0.2242673]
[1741889269526,0.00186319,80560.0,80551.0,0.0001862]
[1741889269716,0.1862647,80556.0,80555.0,0.2483358]
[1741889269908,0.062087,80556.0,80555.0,0.2483358]
[1741889270420,0.0620845,80558.0,80554.0,0.1001]
[1741889270721,0.1241735,80555.0,80554.0,0.224275]
[1741889270916,0.00186319,80560.0,80559.0,0.1241673]
[1741889271220,0.0620836,80559.0,80554.0,0.2242743]
[1741889271425,0.2822509,80559.0,80558.0,0.2242689]
[1741889271717,0.1241781,80552.0,80551.0,0.1243621]
[1741889271919,0.1241781,80552.0,80551.0,0.01257013]
[1741889272128,0.1241781,80552.0,80551.0,0.04979946]
[1741889272321,0.1241781,80552.0,80551.0,0.03741553]
[1741889272618,0.1241781,80552.0,80551.0,0.01450517]
[1741889272823,0.1242012,80537.0,80536.0,0.00913115]
[1741889273021,0.1242012,80537.0,80536.0,0.03246982]
[1741889273214,0.1242012,80537.0,80536.0,0.01248829]
[1741889273418,0.1242012,80537.0,80536.0,0.03249723]
[1741889273617,0.1242012,80537.0,80536.0,0.05556447]
[1741889273918,0.1242012,80537.0,80536.0,0.03555553]
[1741889274118,0.1242012,80537.0,80536.0,0.01248829]
[1741889275127,0.04466225,80538.0,80536.0,0.01245823]
[1741889275323,0.1242074,80533.0,80532.0,0.0939]
[1741889275627,0.1242074,80533.0,80532.0,0.10636121]
[1741889275827,0.1242074,80533.0,80532.0,0.25393464]
[1741889276127,0.1242074,80533.0,80532.0,0.14988433]
[1741889276430,0.1242074,80533.0,80532.0,0.27409333]
[1741889277013,0.1242074,80533.0,80532.0,0.12972564]
[1741889277215,0.04466225,80538.0,80532.0,0.26972564]
[1741889277419,0.5056,80569.0,80532.0,0.26972564]
[1741889277420,0.0620919,80549.0,80544.0,0.1241905]
[1741889277725,0.1243751,80545.0,80544.0,0.13661046]
[1741889278326,0.1243751,80545.0,80544.0,0.15997489]
[1741889278536,0.1243751,80545.0,80544.0,0.26127489]
[1741889278733,0.1243751,80545.0,80544.0,0.23791046]
[1741889280324,0.1243751,80545.0,80544.0,0.01241996]
[1741889280631,0.1243751,80545.0,80544.0,0.13661046]
[1741889280827,0.1243751,80545.0,80544.0,0.01241996]
[1741889281921,0.0001862,80545.0,80544.0,0.01241996]
[1741889282227,0.1243751,80545.0,80544.0,0.13661046]
[1741889282533,0.1243751,80545.0,80544.0,0.23461046]
[1741889283735,0.1243751,80545.0,80544.0,0.13661046]
[1741889283736,0.2193751,80545.0,80544.0,0.13661046]
[1741889284234,0.2193751,80545.0,80544.0,0.23291046]
[1741889284423,0.3138751,80545.0,80544.0,0.13661046]
[1741889284734,0.3138751,80545.0,80544.0,0.01241996]
[1741889284935,0.1242028,80536.0,80535.0,0.29566052]
[1741889285126,0.2862428,80536.0,80535.0,0.29566052]
[1741889285323,0.32720673,80536.0,80535.0,0.18788342]
[1741889285527,0.1242105,80531.0,80519.0,0.124229]
[1741889285730,0.1242105,80531.0,80521.0,0.1242255]
[1741889285935,0.1242105,80531.0,80525.0,0.56697617]
[1741889286140,0.1242105,80531.0,80525.0,0.44275717]
[1741889286331,0.1242105,80531.0,80526.0,0.0963]
[1741889286534,0.1242105,80531.0,80530.0,0.38267558]
[1741889286742,0.1971,80535.0,80530.0,0.01418829]
[1741889286939,0.0621036,80534.0,80533.0,0.1242074]
[1741889287235,0.0621044,80533.0,80531.0,0.01418829]
[1741889287442,0.124209,80532.0,80531.0,0.13839879]
[1741889287833,0.219509,80532.0,80531.0,0.01418829]
[1741889288032,0.320009,80532.0,80531.0,0.01418829]
[1741889288444,0.219509,80532.0,80531.0,0.13839879]
[1741889288945,0.219509,80532.0,80531.0,0.01418829]
[1741889291043,0.1863126,80534.0,80533.0,0.1242038]
[1741889291341,0.2003,80544.0,80531.0,0.01418829]
[1741889291640,0.1018,80533.0,80529.0,0.0997]
[1741889291847,0.124212,80530.0,80529.0,0.3881253]
[1741889292245,0.124212,80530.0,80529.0,0.40219982]
[1741889292541,0.124212,80530.0,80529.0,0.05407452]
[1741889292941,0.124212,80530.0,80529.0,0.17828812]
[1741889293245,0.124212,80530.0,80529.0,0.13828812]
[1741889293746,0.2848166,80532.0,80531.0,0.1242105]
[1741889294050,0.1606046,80532.0,80531.0,0.1242105]
[1741889294243,0.0620784,80566.0,80557.0,0.0620845]
[1741889294435,0.1360911,80559.0,80557.0,0.0620845]
[1741889294635,0.2192689,80559.0,80558.0,0.1241689]
[1741889294945,0.2192689,80559.0,80558.0,0.13824342]
[1741889295243,0.00186319,80560.0,80559.0,0.1241673]
[1741889295739,0.00186319,80560.0,80559.0,0.2239673]
[1741889297149,0.0001862,80567.0,80559.0,0.31972]
[1741889297449,0.1005,80576.0,80570.0,0.1241504]
[1741889297640,0.1241456,80574.0,80570.0,0.1241504]
[1741889297943,0.1005,80576.0,80568.0,0.0973]
[1741889298145,0.1241519,80569.0,80568.0,0.2214519]
[1741889298743,0.2246519,80569.0,80568.0,0.2214519]
[1741889299146,0.2246519,80569.0,80568.0,0.23525789]
[1741889299448,0.2246519,80569.0,80568.0,0.24730961]
[1741889300947,0.0001862,80577.0,80576.0,0.1241411]
[1741889301138,0.08687,80578.0,80576.0,0.38619282]
[1741889301337,0.00186216,80597.0,80576.0,0.38619282]
[1741889301338,0.0620379,80619.0,80593.0,0.0620572]
[1741889301537,0.1241011,80604.0,80603.0,0.124097]
[1741889301748,0.0620484,80605.0,80594.0,0.26885826]
[1741889301947,0.1241103,80596.0,80595.0,0.01206161]
[1741889302249,0.1927,80603.0,80601.0,0.01917929]
[1741889302451,0.1241011,80602.0,80601.0,0.14328049]
[1741889302744,0.0001862,80604.0,80603.0,0.1240996]
[1741889303446,0.1242842,80604.0,80603.0,0.1240996]
[1741889303640,0.1242842,80604.0,80603.0,0.0760477]
[1741889304446,0.11782399,80604.0,80580.0,0.21195028]
[1741889304653,0.1241226,80588.0,80580.0,0.19995575]
[1741889304839,0.1241226,80588.0,80579.0,0.01913638]
[1741889305446,0.1241226,80588.0,80587.0,1e-07]
[1741889305640,0.3213226,80588.0,80587.0,1e-07]
[1741889306651,0.36218756,80588.0,80587.0,1e-07]
[1741889307152,0.23806496,80588.0,80558.0,0.01200651]
[1741889307447,0.1241673,80559.0,80558.0,0.132]
[1741889307651,0.1241673,80559.0,80558.0,0.092]
[1741889308044,0.1241673,80559.0,80558.0,0.2161689]
[1741889308246,0.2184673,80559.0,80558.0,0.092]
[1741889308449,0.1241689,80558.0,80557.0,0.00186176]
[1741889308972,0.2184689,80558.0,80557.0,0.00186176]
[1741889309152,0.1241797,80551.0,80550.0,0.00028905]
[1741889309456,0.1241797,80551.0,80550.0,5e-08]
[1741889310045,0.34958575,80551.0,80550.0,5e-08]
[1741889311451,0.3086797,80551.0,80550.0,5e-08]
[1741889312356,0.34959577,80551.0,80550.0,5e-08]
[1741889313260,0.30878167,80551.0,80550.0,5e-08]
[1741889313554,0.3086797,80551.0,80550.0,5e-08]
[1741889313942,0.3086797,80551.0,80550.0,0.12418125]
[1741889313943,0.28599915,80551.0,80550.0,0.12418125]
[1741889314149,0.12427915,80551.0,80550.0,5e-08]
[1741889314347,0.12427915,80551.0,80550.0,0.09360005]
[1741889314544,9.945e-05,80551.0,80550.0,0.21778125]
[1741889314752,0.12427915,80551.0,80550.0,0.09360005]
[1741889318351,0.12427915,80551.0,80550.0,0.10937692]
[1741889319155,0.1241797,80551.0,80550.0,0.01577687]
[1741889319356,0.1241997,80538.0,80537.0,0.0947]
[1741889319552,0.1241997,80538.0,80537.0,0.1347]
[1741889319855,0.12433459,80538.0,80537.0,0.16018986]
[1741889320352,0.14299967,80538.0,80537.0,0.02548986]
[1741889320559,0.33409967,80538.0,80537.0,0.02548986]
[1741889320746,0.33409967,80538.0,80531.0,0.0908]
[1741889320945,0.124209,80532.0,80531.0,0.0908]
[1741889321546,0.124209,80532.0,80531.0,0.1162889]
[1741889321752,0.12434389,80532.0,80531.0,0.1162889]
[1741889322453,0.12434389,80532.0,80531.0,0.2113889]
[1741889322756,0.12434389,80532.0,80531.0,0.1859]
[1741889323260,0.00013489,80532.0,80531.0,0.3101105]
[1741889323560,0.12434389,80532.0,80531.0,0.3101105]
[1741889323947,0.19995575,80570.0,80531.0,0.42112154]
[1741889324151,0.1831,80559.0,80545.0,0.1241889]
[1741889324352,0.41908645,80569.0,80558.0,0.1241689]
[1741889324557,0.25956645,80569.0,80559.0,0.2152673]
[1741889324757,0.25956645,80569.0,80559.0,0.33308884]
[1741889324758,0.38371865,80569.0,80559.0,0.33308884]
[1741889324962,0.25956645,80569.0,80559.0,0.35308884]
[1741889325445,0.0001862,80568.0,80559.0,0.3843921]
[1741889325650,0.0001862,80568.0,80567.0,0.124155]
[1741889326067,0.1241565,80566.0,80565.0,0.1837]
[1741889326648,0.2188565,80566.0,80565.0,0.3078581]
[1741889326862,0.1241565,80566.0,80565.0,0.3078581]
[1741889327758,0.1241565,80566.0,80565.0,0.33287875]
[1741889327960,0.1241565,80566.0,80565.0,0.20872065]
[1741889328164,0.1241565,80566.0,80565.0,0.33287875]
[1741889328360,0.0001862,80568.0,80567.0,0.124155]
[1741889328565,0.1243397,80568.0,80567.0,0.124155]
[1741889328756,0.1243397,80568.0,80565.0,0.27079895]
[1741889329067,0.0001862,80568.0,80567.0,0.124155]
[1741889329658,0.0001862,80568.0,80567.0,0.3231235]
[1741889329959,0.0001862,80568.0,80567.0,0.341262]
[1741889330166,0.0001862,80568.0,80567.0,0.37235935]
[1741889330365,0.0620628,80587.0,80567.0,0.30820435]
[1741889330663,0.18516498,80590.0,80568.0,0.0118685]
[1741889330664,0.1964,80586.0,80568.0,0.0118685]
[1741889330865,0.0620751,80571.0,80568.0,0.1020767]
[1741889331064,0.1241504,80570.0,80569.0,0.1871]
[1741889331366,0.1241504,80570.0,80569.0,0.0918]
[1741889331554,0.1241504,80570.0,80569.0,0.1871]
[1741889331755,0.3205504,80570.0,80569.0,0.22794081]
[1741889331958,0.3205504,80570.0,80569.0,0.04084081]
[1741889332265,0.1241627,80562.0,80561.0,0.0001862]
[1741889333163,0.1241812,80550.0,80544.0,0.1948]
[1741889333768,0.2859412,80550.0,80549.0,0.18903705]
[1741889334064,0.124192,80543.0,80542.0,0.01912742]
[1741889334364,0.1242012,80537.0,80536.0,0.381096]
[1741889334671,0.1862984,80541.0,80539.0,0.124193]
[1741889334861,0.1862934,80541.0,80540.0,0.3189966]
[1741889335061,0.1241927,80543.0,80542.0,0.124192]
[1741889335857,0.1241927,80543.0,80540.0,0.1862939]
[1741889335858,0.1241951,80541.0,80540.0,0.1862939]
[1741889336063,0.1241951,80541.0,80540.0,0.0620981]
[1741889336967,0.03103,80544.0,80543.0,0.124192]
[1741889337662,0.03103,80544.0,80543.0,0.285072]
[1741889337867,0.03103,80544.0,80543.0,0.30419942]
[1741889338764,0.1552205,80544.0,80543.0,0.285072]
[1741889339065,0.1241966,80540.0,80539.0,0.01912742]
[1741889339469,0.1242043,80535.0,80529.0,0.01912742]
[1741889340173,0.1242043,80535.0,80523.0,0.11452742]
[1741889340671,0.1242043,80535.0,80530.0,0.1242113]
[1741889340869,0.1242043,80535.0,80528.0,0.0621075]
[1741889341067,0.1242043,80535.0,80519.0,0.027982]
[1741889341068,0.1242043,80535.0,80519.0,0.00917655]
[1741889341371,0.1242336,80516.0,80515.0,0.01912742]
[1741889341865,0.1242336,80516.0,80515.0,2e-08]
[1741889342065,0.1242414,80511.0,80500.0,0.1]
[1741889342366,0.1242414,80511.0,80501.0,0.1242558]
[1741889342571,0.1242414,80511.0,80502.0,0.0001862]
[1741889342759,0.1242414,80511.0,80503.0,0.56701067]
[1741889342760,0.3210414,80511.0,80503.0,0.56701067]
[1741889342969,0.3210414,80511.0,80503.0,0.44275717]
[1741889343466,0.3210414,80511.0,80507.0,0.1242469]
[1741889343663,0.1968,80511.0,80502.0,0.0001862]
[1741889343862,0.00096,80513.0,80502.0,0.0001862]
[1741889344075,0.00096,80513.0,80512.0,0.1242398]
[1741889344776,0.00096,80513.0,80512.0,0.13622837]
[1741889345070,0.00096,80513.0,80512.0,0.15622837]
[1741889345378,0.1251983,80513.0,80512.0,0.17531032]
[1741889345577,0.00096,80513.0,80512.0,0.17531032]
[1741889346269,0.1251983,80513.0,80512.0,0.17531032]
[1741889346774,0.00096,80513.0,80512.0,0.17531032]
[1741889347163,0.00096,80513.0,80512.0,0.33531032]
[1741889347370,0.097,80533.0,80512.0,0.06107052]
[1741889347672,0.1242074,80533.0,80532.0,0.2484134]
[1741889347870,0.1242074,80533.0,80532.0,0.01198857]
[1741889348071,0.1242074,80533.0,80532.0,0.17527952]
[1741889348272,0.0967,80534.0,80533.0,0.1242074]
[1741889348472,0.1242059,80534.0,80533.0,0.11048857]
[1741889348671,0.1242031,80538.0,80533.0,0.11071345]
[1741889348877,0.00018631,80541.0,80540.0,0.1241966]
[1741889349272,0.00018631,80541.0,80540.0,0.13643236]
[1741889349472,0.12438141,80541.0,80540.0,0.15146388]
[1741889349879,0.12438141,80541.0,80540.0,0.02726728]
[1741889350177,0.12438141,80541.0,80540.0,0.03955838]
[1741889350871,0.12438141,80541.0,80540.0,0.01503152]
[1741889351067,0.12438141,80541.0,80521.0,0.15908]
[1741889351068,0.00018631,80541.0,80524.0,0.00018631]
[1741889351271,0.40485575,80540.0,80525.0,0.03679318]
[1741889351472,0.0621068,80529.0,80525.0,0.02455411]
[1741889351777,0.0621114,80523.0,80512.0,0.29440355]
[1741889352081,0.1242383,80513.0,80512.0,0.29440355]
[1741889352676,0.14270681,80513.0,80512.0,0.29440355]
[1741889352876,0.34760681,80513.0,80512.0,0.29440355]
[1741889353772,0.1242444,80509.0,80504.0,0.00018631]
[1741889353991,0.2832444,80509.0,80504.0,0.00018631]
[1741889354273,0.2832444,80509.0,80508.0,0.33559829]
[1741889354468,0.1242506,80505.0,80504.0,0.00018631]
[1741889355177,0.1242506,80505.0,80489.0,0.124274]
[1741889355178,0.1242784,80487.0,80486.0,0.12443436]
[1741889355376,0.1242784,80487.0,80486.0,0.00015446]
[1741889355578,0.1242784,80487.0,80486.0,0.01239783]
[1741889355874,0.1242784,80487.0,80486.0,0.0247055]
[1741889356081,0.1242784,80487.0,80486.0,0.1489854]
[1741889356275,0.1242784,80487.0,80486.0,0.0247055]
[1741889356476,0.0621347,80493.0,80486.0,0.03694771]
[1741889356670,0.00018631,80495.0,80487.0,0.1069414]
[1741889356875,0.00018631,80495.0,80487.0,0.0947]
[1741889356876,0.1242769,80488.0,80487.0,0.0947]
[1741889357882,0.3165769,80488.0,80487.0,0.0947]
[1741889358273,0.1242784,80487.0,80486.0,0.00015446]
[1741889358677,0.3165784,80487.0,80486.0,0.00015446]
[1741889360181,0.1242784,80487.0,80486.0,0.00015446]
[1741889360480,0.1957,80488.0,80487.0,0.1242784]
[1741889360680,0.1957,80488.0,80486.0,0.10115446]
[1741889360883,0.1242784,80487.0,80486.0,0.20175446]
[1741889361492,0.3199784,80487.0,80486.0,0.20175446]
[1741889361672,0.3199784,80487.0,80486.0,0.22553411]
[1741889362074,0.1242784,80487.0,80486.0,0.34981401]
[1741889362497,0.1242784,80487.0,80486.0,0.22553411]
[1741889362876,0.1242784,80487.0,80486.0,0.02393411]
[1741889363075,0.1957,80492.0,80468.0,1.08232]
[1741889363276,0.1242908,80479.0,80470.0,0.0998]
[1741889363481,0.1242908,80479.0,80438.0,0.01864]
[1741889363482,0.15904,80481.0,80458.0,0.01913909]
[1741889363781,0.1243217,80459.0,80458.0,0.01913909]
[1741889364387,0.0961,80460.0,80453.0,0.00186435]
[1741889364577,0.1243294,80455.0,80454.0,0.13629069]
[1741889364779,0.1243294,80455.0,80454.0,0.23609069]
[1741889364981,0.2209294,80455.0,80454.0,0.2241278]
[1741889365179,0.2209294,80455.0,80454.0,0.01497363]
[1741889365487,0.1243294,80454.0,80453.0,0.00186435]
[1741889365877,0.062171,80446.0,80442.0,0.01913909]
[1741889366078,0.1925,80445.0,80436.0,0.0996]
[1741889366277,0.1925,80445.0,80436.0,0.1396]
[1741889366587,0.1243557,80437.0,80436.0,0.0996]
[1741889367489,0.3168557,80437.0,80436.0,0.0996]
[1741889368185,0.124368,80429.0,80428.0,0.00015192]
[1741889368790,0.124368,80429.0,80428.0,2e-08]
[1741889369090,0.0621851,80428.0,80418.0,0.1243821]
[1741889369272,0.0621905,80421.0,80420.0,0.1243775]
[1741889369983,0.06232391,80421.0,80420.0,0.1243775]
[1741889370285,0.00013341,80421.0,80420.0,0.1243775]
[1741889371186,0.00013341,80421.0,80420.0,0.2543775]
[1741889371377,0.00013341,80421.0,80420.0,0.1962846]
[1741889371578,0.00013341,80421.0,80420.0,0.19623823]
[1741889372290,0.12567,80438.0,80428.0,0.1243696]
[1741889372582,0.0971,80437.0,80422.0,0.0621894]
[1741889372785,0.1243789,80424.0,80423.0,0.1243729]
[1741889372988,0.124373,80426.0,80424.0,0.0621872]
[1741889373284,0.0971,80428.0,80427.0,0.1243711]
[1741889373486,0.0621803,80434.0,80427.0,0.1243711]
[1741889373690,0.0621826,80431.0,80428.0,0.2198696]
[1741889373989,0.0621826,80431.0,80428.0,0.3114696]
[1741889374291,0.0621826,80431.0,80428.0,0.33504153]
[1741889374485,0.03107,80438.0,80428.0,0.49504153]
[1741889374979,0.03107,80438.0,80437.0,0.1243557]
[1741889375583,0.03107,80438.0,80437.0,0.14792763]
[1741889376088,0.03107,80438.0,80437.0,0.34682763]
[1741889376585,0.1554241,80438.0,80437.0,0.22247193]
[1741889376786,0.1554241,80438.0,80437.0,0.02357193]